{"text_format":"1","workbook":"xlsx","n_sheets":11,"sheets":["hiddenSheet","Kontekst","Oversikt over miljøaspektene","Miljømål, indikatorer","Interessentanalyse","Prioriterte 2019","Risiko- og mulighetsanalyse","Prioriterte Områder","Veileder interessentanalyse","Samsvarsvurdering","Referanser"],"not_rendered":{"charts":0,"images":11,"macros":0,"external_links":1,"defined_names":41,"comments":1,"pivot_tables":0},"unopened":[],"bounds":{"document_bytes":16777216,"sheet_cells":100000,"rows_first":2000,"rows_last":500,"rows_between":2000,"halvings":0,"cell_chars":16384,"cell_head_chars":4096},"cells_cut":0,"cells_raw":0,"read":"whole","date_system":"1900"}

{"sheet":"hiddenSheet","index":0,"n_rows":17,"n_cols":6,"rows_kept":17,"cut":false,"hidden":true,"merged":[]}
["nei","Helse Bergen",null,null,null,"Helse Bergen_Ref"]
["UB","D28632",null,null,null,"0"]
["ARB","Sykehusaktiviteter, miljøaspekter, mål, handlingsplan og myndighetskrav relatert til ytre miljø",null,null,null,"Referanser_Ved"]
["EK_Avdeling¤2#4¤2#¤3#EK_Avsnitt¤2#4¤2#¤3#EK_Bedriftsnavn¤2#1¤2#Helse Bergen¤3#EK_GjelderFra¤2#0¤2#01.10.2021¤3#EK_KlGjelderFra¤2#0¤2#¤3#EK_Opprettet¤2#0¤2#26.03.2013¤3#EK_Utgitt¤2#0¤2#26.03.2013¤3#EK_IBrukDato¤2#0¤2#01.10.2021¤3#EK_DokumentID¤2#0¤2#D28632¤3#EK_DokTittel¤2#0¤2#Sykehusaktiviteter, miljøaspekter, mål, handlingsplan og myndighetskrav relatert til ytre miljø¤3#EK_DokType¤2#0¤2#Prosedyre¤3#EK_DocLvlShort¤2#0¤2#¤3#EK_DocLevel¤2#0¤2#¤3#EK_EksRef¤2#2¤2# 37\t1.23.1.1\tLov om arbeidsmiljø, arbeidstid og stillingsvern mv. (Arbeidsmiljøloven - AML)\t00024\thttp://www.lovdata.no/all/nl-20050617-062.html\t¤1#1.23.1.1.3\tAML Kap 3 Virkemidler i arbeidsmiljøet\t00555\thttp://www.lovdata.no/all/tl-20050617-062-003.html\t¤1#1.23.1.2\tLov om strålevern og bruk av stråling (Strålevernloven - stvl.)\t00202\thttp://www.lovdata.no/all/nl-20000512-036.html\t¤1#1.23.1.3\tLov om kontroll med produkter og forbrukertjenester (Produktkontrolloven)\t00467\thttp://www.lovdata.no/all/nl-19760611-079.html\t¤1#1.23.1.3.1\tProduktkontrolloven §3 Aktsomhetsplikt m.v.\t00220\thttp://www.lovdata.no/all/tl-19760611-079-0.html#3\t¤1#1.23.1.3.2\tProduktkontrolloven § 3a Substitusjonsplikt\t01287\thttp://www.lovdata.no/all/tl-19760611-079-0.html#3a\t¤1#1.23.1.7\tLov om vern mot forurensninger og om avfall (Forurensningsloven)\t00470\thttp://www.lovdata.no/all/nl-19810313-006.html\t¤1#1.23.2.1\tLov om rett til miljøinformasjon og deltakelse i offentlige beslutningsprosesser av betydning for miljøet (miljøinformasjonsloven).\t00527\thttp://www.lovdata.no/all/hl-20030509-031.html\t¤1#1.23.2.3\tLov om kulturminner [kulturminneloven].\t03060\thttp://lovdata.no/all/hl-19780609-050.html\t¤1#1.23.2.4\tLov om planlegging og byggesaksbehandling (plan- og bygningsloven)\t03179\thttp://www.lovdata.no/cgi-wift/ldles?doc=/all/nl-20080627-071.html&11-1\t¤1#1.23.2.5\tLov om produksjon, omforming, overføring, omsetning, fordeling og bruk av energi m.m. (energiloven)\t03184\thttp://www.lovdata.no/cgi-wift/ldles?doc=/all/nl-19900629-050.html&8-1\t¤1#1.23.2.7\tLov om offentlig anskaffelser\t02890\thttp://www.lovdata.no/all/hl-19990716-069.html\t¤1#1.23.3.1\tForskrift om organisering, ledelse og medvirkning\t03785\thttp://www.lovdata.no/cgi-wift/ldles?doc=/sf/sf/sf-20111206-1355.html\t¤1#1.23.3.3\tForskrift om utførelse av arbeid\t03967\thttp://www.lovdata.no/for/sf/ad/td-20111206-1357.html\t¤1#1.23.3.7\tAT 516 Forskrift om registrering, vurdering, godkjenning og begrensning av kjemikalier (REACH)\t02802\thttp://www.lovdata.no/cgi-wift/ldles?doc=/sf/sf/sf-20080530-0516.html\t¤1#1.23.3.8\tForskrift om systematisk helse,- miljø- og sikkerhetsarbeid i virksomheter (Internkontrollforskriften)\t00021\thttp://www.lovdata.no/cgi-wift/ldles?doc=/sf/sf/sf-19961206-1127.html\t¤1#1.23.3.12\tMerkeforskriften (Klassifisering og merking av farlige kjemikalier)\t00211\thttp://www.lovdata.no/cgi-wift/ldles?doc=/sf/sf/sf-20020716-1139.html\t¤1#1.23.4.4\tForskrift om strålevern og bruk av stråling (strålevernforskriften)\t00498\thttp://www.lovdata.no/cgi-wift/ldles?doc=/sf/sf/sf-20031121-1362.html\t¤1#1.23.8.1\tForskrift om begrensning av forurensning (forurensningsforskriften)\t00487\thttp://www.lovdata.no/for/sf/md/md-20040601-0931.html\t¤1#1.23.8.1.1\tKapittel 1. Tiltak for å motvirke fare for forurensning fra nedgravde oljetanker\t02866\thttp://www.lovdata.no/for/sf/md/td-20040601-0931-002.html\t¤1#1.23.8.1.2\tKapittel 2. Opprydding i forurenset grunn ved bygge- og gravearbeider\t02867\thttp://www.lovdata.no/for/sf/md/td-20040601-0931-003.html\t¤1#1.23.8.1.3\tKapittel 5. Støy - kartlegging, handlingsplaner og tiltaksgrenser for eksisterende virksomhet\t02868\thttp://www.lovdata.no/for/sf/md/xd-20040601-0931.html#map008\t¤1#1.23.8.1.4\tKapittel 8. Svovelinnhold i fyringsolje\t02869\thttp://www.lovdata.no/for/sf/md/xd-20040601-0931.html#map025\t¤1#1.23.8.1.5\tKapittel 15A. Påslipp\t02870\thttp://www.lovdata.no/for/sf/md/td-20040601-0931-044.html\t¤1#1.23.8.2\tForskrift om gjenvinning og behandling av avfall (avfallsforskriften)\t00488\thttp://www.lovdata.no/for/sf/md/md-20040601-0930.html\t¤1#1.23.8.2.1\tKapittel 1. Kasserte elektriske og elektroniske produkter\t02871\thttp://www.lovdata.no/for/sf/md/xd-20040601-0930.html#map001\t¤1#1.23.8.2.2\tKapittel 3. Miljøskadelige batterier\t02872\thttp://www.lovdata.no/for/sf/md/xd-20040601-0930.html#map015\t¤1#1.23.8.2.3\tKapittel 11. Farlig avfall\t02873\thttp://www.lovdata.no/for/sf/md/xd-20040601-0930.html#map056\t¤1#1.23.8.2.4\tKapittel 14. Kasserte PCB-holdige isolerglassruter\t02874\thttp://www.lovdata.no/for/sf/md/xd-20040601-0930.html#map067\t¤1#1.23.8.2.5\tKapittel 16. Radioaktivt avfall\t04794\thttp://www.lovdata.no/for/sf/md/xd-20040601-0930.html#map075\t¤1#1.23.10.1\tForskrift om offentlige anskaffelser\t02887\thttp://www.lovdata.no/for/sf/fa/fa-20060407-0402.html\t¤1#1.23.11.1\tForskrift om tekniske krav til byggverk (Byggteknisk forskrift)\t03181\thttp://www.lovdata.no/for/sf/kr/xr-20100326-0489.html\t¤1#1.23.11.1.1\tKapittel 9. Ytre miljø\t03183\thttp://www.lovdata.no/for/sf/kr/tr-20100326-0489-011.html\t¤1#1.23.12.1\tForskrift om energimerking av bygninger og energivurdering av tekniske anlegg (energimerkeforskriften)\t03186\thttp://www.lovdata.no/cgi-wift/ldles?doc=/sf/sf/sf-20091218-1665.html\t¤1#4.302\tNS-EN ISO 14001:2004\t03767\thttp://www.standard.no/en/PDF/DisplayFile/?file=LT7qtdg1mgEZRw49jK1H3A%3D%3D\t¤1#4.302.4\tMiljøaspekt\t03771\t\t¤1#4.302.6\tMål, delmål og program(mer)\t03775\t\t¤1#¤3#EK_Erstatter¤2#0¤2#9.04¤3#EK_ErstatterD¤2#0¤2#01.10.2021¤3#EK_Signatur¤2#0¤2#¤3#EK_Verifisert¤2#0¤2#¤3#EK_Hørt¤2#0¤2#¤3#EK_AuditReview¤2#2¤2#¤3#EK_AuditApprove¤2#2¤2#¤3#EK_Gradering¤2#0¤2#Åpen¤3#EK_Gradnr¤2#4¤2#0¤3#EK_Kapittel¤2#4¤2#¤3#EK_Referanse¤2#2¤2# 0\t¤3#EK_RefNr¤2#0¤2#02.1.1.7.3-01¤3#EK_Revisjon¤2#0¤2#9.05¤3#EK_Ansvarlig¤2#0¤2#Patterson, Kristin Blehr¤3#EK_SkrevetAv¤2#0¤2#Kristin Patterson¤3#EK_UText1¤2#0¤2#Kristin Patterson¤3#EK_UText2¤2#0¤2#¤3#EK_UText3¤2#0¤2#¤3#EK_UText4¤2#0¤2#¤3#EK_Status¤2#0¤2#Endres¤3#EK_Stikkord¤2#0¤2#¤3#EK_SuperStikkord¤2#0¤2#¤3#EK_Rapport¤2#3¤2#¤3#EK_EKPrintMerke¤2#0¤2#Uoffisiell utskrift er kun gyldig på utskriftsdato¤3#EK_Watermark¤2#0¤2#¤3#EK_Utgave¤2#0¤2#9.05¤3#EK_Merknad¤2#7¤2#¤3#EK_VerLogg¤2#2¤2#Ver. 9.05 - 01.10.2021|¤1#Ver. 9.04 - 01.10.2021|Forlenget gyldighet til 01.10.2022¤1#Ver. 9.03 - 15.09.2021|Forlenget gyldighet til 15.09.2022¤1#Ver. 9.02 - 01.06.2021|Forlenget gyldighet til 01.06.2022¤1#Ver. 9.01 - 27.01.2021|Forlenget gyldighet til 27.01.2022¤1#Ver. 9.00 - 26.01.2021|¤1#Ver. 8.22 - 22.01.2021|Forlenget gyldighet til 22.01.2022¤1#Ver. 8.21 - 22.01.2021|Forlenget gyldighet til 22.01.2022¤1#Ver. 8.20 - 22.09.2020|Forlenget gyldighet til 22.09.2021¤1#Ver. 8.19 - 09.10.2019|Forlenget gyldighet til 09.10.2020¤3#EK_RF1¤2#4¤2#¤3#EK_RF2¤2#4¤2#¤3#EK_RF3¤2#4¤2#¤3#EK_RF4¤2#4¤2#¤3#EK_RF5¤2#4¤2#¤3#EK_RF6¤2#4¤2#¤3#EK_RF7¤2#4¤2#¤3#EK_RF8¤2#4¤2#¤3#EK_RF9¤2#4¤2#¤3#EK_Mappe1¤2#4¤2#¤3#EK_Mappe2¤2#4¤2#¤3#EK_Mappe3¤2#4¤2#¤3#EK_Mappe4¤2#4¤2#¤3#EK_Mappe5¤2#4¤2#¤3#EK_Mappe6¤2#4¤2#¤3#EK_Mappe7¤2#4¤2#¤3#EK_Mappe8¤2#4¤2#¤3#EK_Mappe9¤2#4¤2#¤3#EK_DL¤2#0¤2#1¤3#EK_GjelderTil¤2#0¤2#01.10.2022¤3#EK_Vedlegg¤2#2¤2# 0\t¤3#EK_AvdelingOver¤2#4¤2#¤3#EK_HRefNr¤2#0¤2#¤3#EK_HbNavn¤2#0¤2#¤3#EK_DokRefnr¤2#4¤2#00030201010703¤3#EK_Dokendrdato¤2#4¤2#17.11.2021 15:40:05¤3#EK_HbType¤2#4¤2#¤3#EK_Offisiell¤2#4¤2#¤3#EK_VedleggRef¤2#4¤2#02.1.1.7.3-01¤3#EK_Strukt00¤2#5¤2#¤5#¤5#HVRHF¤5#1¤5#-1¤4#¤5#02¤5#Helse Bergen HF¤5#1¤5#0¤4#.¤5#1¤5#Fellesdokumenter¤5#1¤5#0¤4#.¤5#1¤5#Ledelse og styringssystem¤5#1¤5#0¤4#.¤5#7¤5#Miljøstyring¤5#0¤5#0¤4#.¤5#3¤5#Planlegging¤5#0¤5#0¤4# - ¤3#EK_Strukt01¤2#5¤2#¤5#¤5#Kategorier HB (ikke dokumenter på dette nivået trykk dere videre ned +)¤5#0¤5#0¤4#¤5#¤5#Ledelse og styringssystem (ikke dokumenter på dette nivået trykk dere videre ned +)¤5#0¤5#0¤4#¤5#¤5#HMS Helse, miljø og sikkerhet¤5#3¤5#0¤4# - ¤3#EK_Pub¤2#6¤2#¤3#EKR_DokType¤2#0¤2#¤3#EKR_Doktittel¤2#0¤2#¤3#EKR_DokumentID¤2#0¤2#¤3#EKR_RefNr¤2#0¤2#¤3#EKR_Gradering¤2#0¤2#¤3#EKR_Signatur¤2#0¤2#¤3#EKR_Verifisert¤2#0¤2#¤3#EKR_Hørt¤2#0¤2#¤3#EKR_AuditReview¤2#2¤2#¤3#EKR_AuditApprove¤2#2¤2#¤3#EKR_AuditFinal¤2#2¤2#¤3#EKR_Dokeier¤2#0¤2#¤3#EKR_Status¤2#0¤2#¤3#EKR_Opprettet¤2#0¤2#¤3#EKR_Endret¤2#0¤2#¤3#EKR_Ibruk¤2#0¤2#¤3#EKR_Rapport¤2#3¤2#¤3#EKR_Utgitt¤2#0¤2#¤3#EKR_SkrevetAv¤2#0¤2#¤3#EKR_UText1¤2#0¤2#¤3#EKR_UText2¤2#0¤2#¤3#EKR_UText3¤2#0¤2#¤3#EKR_UText4¤2#0¤2#¤3#EKR_DokRefnr¤2#4¤2#¤3#EKR_Gradnr¤2#4¤2#¤3#EKR_Strukt00¤2#5¤2#¤5#¤5#HVRHF¤5#1¤5#-1¤4#¤5#02¤5#Helse Bergen HF¤5#1¤5#0¤4#.¤5#1¤5#Fellesdokumenter¤5#1¤5#0¤4#.¤5#1¤5#Ledelse og styringssystem¤5#1¤5#0¤4#.¤5#7¤5#Miljøstyring¤5#0¤5#0¤4#.¤5#3¤5#Planlegging¤5#0¤5#0¤4# - ¤3#","Retningslinje",null,null,null,"0"]
[2.2000000000000002,"Kristin Patterson",null,null,null,"Referanser_Eks"]
[0,"Bua, Ingvild",null,null,null,"36"]
["lagre","16.07.2024"]
["___","10.04"]
["___","1.1.11.3-01"]
[";00024;00555;00202;00467;00220;01287;00470;00527;03060;03179;03184;02890;03785;03967;02802;00021;00211;00498;00487;02866;02867;02868;02869;02870;00488;02871;02872;02873;02874;04794;02887;03181;03183;03186;03767;03771;03775;","Ledelse og styringssystem/HMS Helse, miljø og sikkerhet"]
[";00024;00555;00202;00467;00220;01287;00470;00527;03060;03179;03184;02890;03785;03967;02802;00021;00211;00498;00487;02866;02867;02868;02869;02870;00488;02871;02872;02873;02874;04794;02887;03181;03183;03186;03767;03771;03775;","Helse Bergen HF/Fellesdokumenter/Ledelse og styringssystem"]
[";00024;00555;00202;00467;00220;01287;00470;00527;03060;03179;03184;02890;03785;03967;02802;00021;00211;00498;00487;02866;02867;02868;02869;02870;00488;02871;02872;02873;02874;04794;02887;03181;03183;03186;03767;03771;03775;","[]"]
[";00024;00555;00202;00467;00220;01287;00470;00527;03060;03179;03184;02890;03785;03967;02802;00021;00211;00498;00487;02866;02867;02868;02869;02870;00488;02871;02872;02873;02874;04794;02887;03181;03183;03186;03767;03771;03775;00024;00555;00202;00467;00220;01287;00470;00527;03060;03179;03184;02890;03785;03967;02802;00021;00211;00498;00487;02866;02867;02868;02869;02870;00488;02871;02872;02873;02874;04794;02887;03181;03183;03186;03767;03771;03775;","[Dok.ansvarlig]"]
["[EK_Referanse]","Kristin Patterson"]
["___"]
["___"]
[-11]

{"sheet":"Kontekst","index":1,"n_rows":69,"n_cols":22,"rows_kept":69,"cut":false,"hidden":false,"merged":[]}
[]
[null,null,null,null,null,null,null,null,null,null,null,null,null,null,null,null,null,null,null,null,null,"«Bestemme eksterne og interne forhold som er relevante for dens formål, og som påvirker dens evne til å oppnå tiltenkte resultater av sitt ledelsessystem for miljø. Slike forhold skal også omfatte miljøforhold som påvirkes av, eller som kan påvirke organisasjonen.»"]
[null,null,null,null,null,null,null,null,null,null,null,null,null,null,null,null,null,null,null,null,null,"Kap.4 Organisasjonens kontekst ISO 14001:2015"]
[]
[]
[]
[]
[]
[]
[]
[]
[]
[]
[]
[]
[]
[]
[]
[]
[]
[]
[]
[]
[]
[]
[]
[]
[]
[]
[]
[]
[]
[]
[]
[]
[]
[]
[]
[]
[]
[]
[]
[]
[]
[]
[]
[]
[]
[]
[]
[]
[]
[]
[]
[]
[]
[]
[]
[]
[]
[]
[]
[]
[]
[]
[]
[]
[]
["Utviklingsplan 2022-2035 (sharepoint.com)"]

{"sheet":"Oversikt over miljøaspektene","index":2,"n_rows":108,"n_cols":11,"rows_kept":108,"cut":false,"hidden":false,"merged":[]}
[" "]
[]
[]
[]
[]
[]
[]
[]
[]
[]
[]
[]
[]
[]
[]
[]
[]
[]
[]
[]
[]
[]
[]
[]
[]
[]
[]
[]
[]
[]
[]
[]
[]
[]
[]
[]
[]
[]
[]
[]
[]
[]
[]
[]
[]
[]
[]
[]
["Oversikt over miljøaspektene (miljøutfordringene) i Helse Bergen"]
["Aktivitet, produkt, tjeneste","Miljøaspekter","Driftssituasjon","Miljøpåvirkning","Miljøpåvirkning/ konsekvens","Hyppighet/\nMengde/\nSannsynlighet","Sum ytre miljø","Viser til prosedyre/ lovverk","Interessenter\nVurder i hvor stor grad miljøaspektet er av interesse for andre interessenter (naboer, myndigheter, samarbeidspartnerer)\n","Innsats (prioritering)\nVurdere hvor store ressurser/innsats som må til for å gjøre noe med miljøaspektet "]
[null,"Miljøaspekt: del av en organisasjons aktivitetet, produkter eller tjenester som kan innvirke på miljøet",null,"Beskriv hvilken effekt aktiviteten har på miljøet","3 poeng: Stor påvirkning på miljøet\n2 poeng: Begrenset påvirkning på miljøet\n1 poeng: Liten påvirkning på miljøet","3 poeng: Betydelig\n2 poeng: Middels stor\n1 poeng: Liten",null,null,"3 poeng: stor interesse\n2 poeng:middels interesse\n1 poeng: liten interesse","1 poeng: stor innsats\n2 poeng: middels innsats\n3 poeng: liten innsats"]
[null,"Utslipp til luft\n",null,null,null,null,null,"Forurensningsforskriften"]
["Transport\nAmbulanse, helikopter, fly, buss, bil og drosje",null,"Normal","Avgasser, mikroplast og bruk av areal",2,3,6,"Forskrift om energi- og miljøkrav ved offentlig anskaffelse av kjøretøy til veitransport",2,null,"Miljøhandlingsplan for Helse Bergen"]
["Transport av pasienter og pårørende",null,"Normal","Avgasser og støy",2,3,6,"Forurensnings-forskriften kap. 5 Støy",3,2]
["Ansattetransport",null,"Normal","Avgasser og støy",2,2,4,null,3,2]
["Varetransport",null,"Normal","Avgasser og støy",2,3,6,null,2,1]
["Avfallstransport",null,"Normal ","Avgasser og støy",3,2,6,"Landtransport av farlig gods §10 (sikkerhetsrådgiver)",2,1]
["Interntransport",null,"Normal ","Avgasser og støy",2,2,{"$f":"SUM(E58:F58)","v":4},null,1,1]
["Bruk av kjemikalier",null,"Normal ","Flyktige gasser (helse- og miljøskadelige stoffer)",1,1,1,"REACH - forskriften\nForskrift om klassifisering mv. av stoff (CLP)\nForskrift om utførelse av arbeid, bruk av arbeidsutstyr og tilhørende tekniske krav (forskrift om utførelse av arbeid)\nForskrift om org., ledelse og medvirkning\nE.K. 02.1.1.7-4-1 Håndtering av kjemikalier \n",1,1]
["Vaskeriaktivitet",null,"Normal","Damp ",1,2,2,null,1,1]
["Kjøletårn",null,"Normal","Damp ",1,1,1,null,2,1]
["Bruk av olje- og gasskjel",null,"Normal/\nUnormal","Avgasser som CO2, NOx",2,2,4,"Forurensingsforskriften kap. 8 \nUtslippstillatelse Statsforvalteren",2,2]
["Bruk av fjernvarme",null,"Normal","Avgasser og slagg til deponi",1,2,2,"Forskrift om tekniske krav til byggverk (byggteknisk forskrift)\nForskrift om produksjon, omforming, overføring, omsetning, fordeling og bruk av energi m.m. (energilovforskriften)",1,1]
["Radioaktive isotoper",null,"Normal","Avgasser ",2,2,{"$f":"SUM(E64:F64)","v":4},"Forskrift om strålevern og bruk av stråling (strålevernforskriften) \nE.K. 02.1.6.1 Strålebruk, 02.1.6.1.1 Kravdokument Strålebruk",1,1]
[null,"Utslipp til vann",null,null,null,null,null,"REACH - forskriften\nForskrift om klassifisering mv. av stoff (CLP)\nForskrift om utførelse av arbeid, bruk av arbeidsutstyr og tilhørende tekniske krav (forskrift om utførelse av arbeid)\nForskrift om org., ledelse og medvirkning\nE.K. 02.1.1.7-4-1 Håndtering av kjemikalier \nForurensningsforskriften kap. 15a påslipp\nSanitærreglement for Bergen kommune "]
["Laboratoriearbeid",null,"Normal","Rundt 140 ulike miljøskadelige stoffer",2,3,6,null,2,1]
["Vaskeriaktivitet",null,"Normal/\nUnormal","Helse- og miljøskadelige stoffer \npH og temperatur",1,2,2,"Dialog med Bergen kommune og Statsforvalteren",1,1]
["Rengjøring og desinfeksjon",null,"Normal","Helse- og miljølskadelige stoffer",2,2,4,null,1,1]
["Forbruk av medisiner",null,"Normal","Helse- og miljølskadelige stoffer",2,3,6,"Legemiddelhåndtering\nE.K. 02.1.4.4.2 Vareflyt Avfallshåndtering",2,1]
["Bassengdrift \nHUS, Kysthospitalet og Nordås",null,"Normal","klor",1,2,2,"E.K. 02.1.1.7-4-1 Håndtering av kjemikalier Forurensnings-forskriften kap. 15a påslipp",1,1]
["Bruk radioaktive isotoper",null,"Normal/\nUnormal",null,2,2,{"$f":"SUM(E71:F71)","v":4},"E.K. 02.1.4.2 Strålevern \nUtslippstillatelse,  Direktoratet for strålevern og atomsikkerhet",1,1]
["Bruk av olje og - fettutskillere",null,"Normal","Olje og fett til avløp",1,1,1,"Forurensningsforskriften kap. 15 krav til utslipp av oljeholdig avløpsvann",1,1]
["Matlaging",null,"Normal","Organisk materiale til avløp",1,2,2,null,1,1]
["Tannbehandling",null,"Normal ",null,null,null,{"$f":"SUM(E74:F74)","v":0},"Avfallsforskriften kap.11 \nForurensnings-forskriften § 15a-6 om amalgamholdig avløpsvann"]
["Mikroplast (vaskeriet, moppevask)",null,"Normal",null,2,2,4,"Kartlegging av mikroplast er gjenomført",3,1]
[null,"Utslipp til jord",null,null,null,null,null,"Forurensningsforskriften"]
["Drift av park",null,"Normal ","Plantevernmidler, tilførsel av jord",1,1,{"$f":"SUM(E77:F77)","v":2},null,1,1]
["Transport",null,"Normal","Tungmettaler, mikroplast, salt og sand",2,2,{"$f":"SUM(E78:F78)","v":4},null,1,1]
["Fjerning av maling, murpuss på bygninger",null,"Normal/unormal","PCB, helse- og miljøskadelige stoffer",3,1,{"$f":"SUM(E79:F79)","v":4},"Forskrift om tekniske krav til byggverk (byggteknisk forskrift)",2,1]
["Fylling av olje på tanker Lagring av kjemikalier i tank",null,"Normal/unormal","Helse – og miljøskadeligestoffer",null,null,{"$f":"SUM(E80:F80)","v":0},"Forurensningsforskriften kap.1 om nedgravde oljetanker"]
["Flytting av jordmasser på området",null,"Normal/unormal","Helse – og miljøskadeligestoffer",null,null,{"$f":"SUM(E81:F81)","v":0},"Forskrift om tekniske krav til byggverk (byggteknisk forskrift)"]
["Ulike innkjøp","Forbruk av naturressurser ",null,null,null,"Rundt 85% av sykehusets klimagassutslipp kommer fra kjøp av varer og tjenester - oppdaterte data i klimaregnskapet for 2021",null,"REACH - forskriften\nLov om offentlige anskaffelser §6 \nProduktkontrolloven §3a substitusjonsplikt \nE.K. 02.1.1.5 Anskaffelser\nDialog med Sykehusinnkjøp",null,null,"Sykehusinnkjøp HF ved Avdeling for Samfunnsansvar\nRisikovurdering av innkjøpsplanen - Samfunnsansvar (inkludert ytre miljø)\n"]
["Kontormateriell (inkl. papir) og inventar",null,"Normal","Generell ressursforbruk, helse – og miljøskadelige stoffer, avfall og naturinngrep",2,3,6,null,1,2]
["Teknisk utstyr\nMedisisnk teknisk utstyr",null,"Normal","Generell ressursforbruk, helse – og miljøskadelige stoffer, avfall og naturinngrep",3,2,6,null,1,2]
["Medisinsk forbruksmateriell og annet forbruksmateriell",null,"Normal","Generell ressursforbruk, helse – og miljøskadelige stoffer, avfall og naturinngrep",3,3,9,null,2,2]
["Mat",null,"Normal","Generell ressursforbruk, helse – og miljøskadelige stoffer, avfall og naturinngrep",2,3,6,null,2,2]
["Kjemikalier og legemidler",null,"Normal","Helse – og miljøskadeligestoffer",3,3,9,null,2,1]
[null,"Avfall",null,null,null,null,null,"Forskrift om gjenvinning og behandling av avfall (avfallsforskriften)\nForskrift om endring i avfallsforskriften (utsortering og materialgjenvinning av bioavfall og plastavfall)\nE.K. 02.1.5.7 driftsrutiner"]
["Gjenbruk",null,"Normal",null,1,1,1,null,2,1]
["Gjenvinning",null,"Normal","Helse- og miljøskadelige stofer, energi",1,1,1,null,2,2]
["Forbrenning ved energigjenvinning",null,"Normal","Slagg, helse – og miljøskadeligestoffer",2,2,{"$f":"SUM(E91:F91)","v":4},null,1,1]
["Deponering",null,"Normal","Utslipp til jord og vann",2,1,2,null,1,1]
["Byggavfall",null,"Normal","Helse- og miljøskadelige stoffer",2,2,{"$f":"SUM(E93:F93)","v":4},"Forskrift om tekniske krav til byggverk (byggteknisk forskrift)",1,2]
["Radioaktivt avfall",null,"Normal/Unormal","Slagg, helse – og miljøskadeligestoffer",2,1,2,"Avfallsforskriften kap. 16\nE.K. 02.1.7.3 Avfall\n"]
[null,"Støy"]
["Helikopter transport",null,"Normal ",null,2,2,{"$f":"SUM(E96:F96)","v":4},"Forskrift om begrensning av forurensning (forurensningsforskriften)kap.5 ",1,1]
["Ombygging og nybygg",null,"Normal (tidsavgrenset)",null,2,2,{"$f":"SUM(E97:F97)","v":4},"Plan og bygningsloven § 26\nForskrift om begrensning av forurensning (forurensningsforskriften) kap.5",2,1]
["Byggevirksomhet","Forbruk av naturressurser",null,null,null,null,null,"Plan og bygningsloven §1-1 \nForskrift om tekniske krav til byggverk (byggteknisk forskrift) §9-1,§9-2, §13-1\nForskrift om begrensning i bruk av helse- og miljøfarlige kjemikalier og andre produkter (produktkontrollforskriften)\nLov om offentlige anskaffelser § 6 \nProduktkontrolloven §3a substitusjonsplikten\nEnergimerkeforskriften \nStandard for klima i miljø i sykehusprosjekter, Sykehusbygg HF\nE.K. 02.6.5 Prosjektkontoret\nEgen miljøoppfølgingsplan i web-hotellet"]
["Nybygg",null,"Normal (tidsbegrenset)","Generell ressursforbruk, helse – og miljøskadelige stoffer, avfall og naturinngrep",3,3,9,null,1,2]
["Ombygginger",null,"Normal (tidsbegrenset)","Generell ressursforbruk, helse – og miljøskadelige stoffer, avfall og naturinngrep",3,2,6,null,1,2]
["Vann – og energiforbruk","Forbruk av naturressurser",null,null,null,null,null,"Forurensningsforskriften (kap.8 svovelinnhold i fyringsolje) \nUtslippstillatelse fra Statsforvalteren\n",null,null,"Delplan Energi og Energiledelse"]
["Olje- kjel",null,"Normal/Unormal","Generell ressursforbruk, helse – og miljøskadelige stoffer, avfall og naturinngrep med vekt på ",2,2,{"$f":"SUM(E102:F102)","v":4},null,2,1]
["Gass- kjel",null,"Normal/Unormal","Generell ressursforbruk, helse – og miljøskadelige stoffer, avfall og naturinngrep ",2,2,4,null,2,1]
["Strømforbruk",null,"Normal","Naturinngrep",1,3,3,null,1,1]
["Fjernvarme",null,"Normal","Helse – og miljøskadelige stoffer",2,2,4,null,1,1]
["Vann",null,"Normal","Generell ressursforbruk, helse – og miljøskadelige stoffer, og naturinngrep",1,2,2,null,1,1]
["Kulturminner",null,null,null,null,null,null,"Lov om kulturminner \nFølger egen forvaltningsplan for helseforetakene "]
["Miljøinformasjonsloven",null,null,null,null,null,null,"Internett, intranett, Rapport Klimapartnere Vestland, Spesialisthelsetjensten sin Samfunnsansvarsrapport, Mijørapppporten til Helse Bergen"]

{"sheet":"Miljømål, indikatorer","index":3,"n_rows":10,"n_cols":5,"rows_kept":10,"cut":false,"hidden":false,"merged":[[1,1,9,1]]}
["Nasjonale klima- og miljømål ","Rapporteres","Registreres av ","Grunnlang"]
["Hovedmål: Redusere CO2-utslipp med 40 prosent innen 2030","Dialogmøte mellom HVRHFet og HBHFet\nSpesialisthelsetjenesten sin rapport om samfunnsansvar","Sammenstilles av Seksjon for arbeidsmiljø- og personalrådgivning","Transport ansatte, transport pasienter, gasser, og energiforbruk","https://www.nestegenerasjonplan.no/nasjonale-planar/felles-klima-og-milj%C3%B8m%C3%A5l"]
["Langsiktig miljømål: Klimanøytralt innen 2045"]
["Delmål: Redusere helsetjenesteassosierte infeksjoner",null,"Seksjon for pasientsikkerhet","Nasjonal kvalitetsindikator\nAndel helsetjenesteassosierte infeksjoner blant pasienter på sykehus på målingstidspunktet"]
["Delmål: Redusere energiforbruket med 20 prosent innen 2030 og øke andelen gjenvinningskraft",null,"Teknisk avdeling","kWh, totalt energiforbruk"]
["Delmål: Minimum 20 prosent av de polikliniske konsultasjonene skal være over video og telefon",null,"Seksjon for e-helse","Styringsdata HV"]
["Delmål: Matavfall skal reduseres med 50 prosent innen 2030",null,"Matforsyningen","Avfallsleverandør"]
["Delmål: Produkt uten (utslipp av) helse- og miljøskadelige stoff skal være 75 prosent innen 2030",null,"Ikke data per nå"]
["Delmål: Fossilfritt sjukehus og redusere reisevirksomheten for medarbeidere innen 2030",null,"Teknisk avdeling \nSeksjon for sikkerhet","Forbruk olje og gass, andel fossilfrei kjøretøy"]
["Delmål: Miljøbevisste medarbeidere i alle enheter",null,"Seksjon for arbeidsmiljø- og personalrådgning","Forbedringsundersøkelsen, GAT"]

{"sheet":"Interessentanalyse","index":4,"n_rows":47,"n_cols":19,"rows_kept":47,"cut":false,"hidden":false,"merged":[[1,4,6,5]]}
[]
[null,null,null,null,"Interesse og påvirkning vurderes \ni forhold til miljøsstyringssystemet sin miljøprestasjon"]
[null,null,null,null,null,null,null,null,null,null,"Høy påvirkning"]
[]
[null,null,"INTERESSENTANALYSE"]
[null,null,"Miljøstyringssystemet"]
[]
[null,"Nr","INTERESSENT (roller, enheter, personer eller parter)","INTERESSE (hva er interessentens behov og/eller krav til prosjektets leveranser)  ","INTERESSE\n(Høy, Middels, Lav )","PÅVIRKNING\n(Høy, Middels, Lav )","Behov og \nforvetninger","Inkluderes i samsvars-vurderingen","Forankrings- og forbedringstiltak                                                                                  \nSe også egen liste i fane prioriterte"]
[null,1,"Helse- og omsorgsdep.",null,"Lav","Høy",null,null,"Styringsdokumentet"]
[null,null,"Samarbeidsutvalget for klima- og miljø spesialisthelsetjenesten, Rammeverket for miljø og bærekraft i spesialisthelsetjenesten",null,"Middels","Middels","Miljøstyrings-system","X","Tatt inn felles klima- og miljømål for spesialisthelsetjenesten"]
[null,null,"Helse Vest RHFet, Styringsdokumentet; Rammeverket",null,"Middels","Høy","Kvalitet, Omdømme","X","Dialogmøte mellom adm.dir. HBHF og adm.dir. HVRHFet Årleg melding, Rammeverket"]
[null,{"$f":"B9+1","v":2},"Brukerutvalget ",null,"Lav","Lav","Transport, Omdømme",null,"Møte i ungdomsrådet vår 2021, bør være et årlig fast punkt"]
[null,{"$f":"B12+1","v":3},"Pasienter og besøkende",null,"Lav","Lav","Omdømme"]
[null,4,"Frivillige",null,"Lav","Lav","Omdømme"]
[null,5,"Fagenheter/stab/ Prosjektledere",null,"Middels","Middels","Kvalitet, System","X","Revisjonsprogram, Internrevisjoner, forbedringsarbeid, pasientsikkerhetsprogrammet, UP 2035, delplaner, prosjekter"]
[null,6,"Fylkeskommunen Skyss/Drosjer",null,"Lav","Lav","Samarbeid",null,"Noe samarbeid"]
[null,null,"Bergen kommune",null,null,null,"Samarbeid",null,"Transport, RVUer, Sykkelstrategien, Klimabudsjett, utslippstillatelse"]
[null,{"$f":"B16+1","v":7},"Statsforvalteren Vestland",null,"Lav","Middels","Samarbeid","X","Tilsyn"]
[null,8,"Opplæring og utdanning \n(HVL, UiB, Fylkeskommunen)",null,"Lav","Middels","Kvalitet, System, Samarbeid",null,"\n"]
[null,9,"Sykehusapotekene",null,"Lav","Middels","Kvalitet, System","X","Legemiddlehåndtering er en del av internrevisjon samt at farmasøytene gjennomfører legemiddelrevisjoner. Feil eller mangler meldes i Synergi og eget system, Helse Vest IKT.  "]
[null,null,"Helse Vest IKT",null,"Middels","Lav","MSS","X","Samarbeidsavtalen"]
[null,12,"Medarbeidere",null,"Middels","Middels","Kvalitet, System","x","En del av internrevisjonene, forebedringsundersøkelsen, lokal handlingsplan, Synergi, opplæring og HMS-årsarpport, har kommunikasjonsplan som skal bidra til faste saker på intranettet"]
[null,{"$f":"B22+1","v":13},"Avtaleforvaltere",null,"Middels","Middels","Kvalitet, System",null,"LIBRA vil bidra til forenkling for medling av feil og mangler. Det er også organisatoriske endringer som kan bidra til betre kontroll på vareflyten. Det også opprettet innkjøpsgrupper"]
[null,14,"Innkjøpsgrupper",null,"Lav","Lav","Funksjonalitet",null,"LIBRA rulles nå ut og det blit tilgang til miljø - og helseinformasjon ved kjøp av varer. Feil og mangler kan også meldes inn i samme system"]
[null,15,"Innkjøp medarbeidere (utenom avtale)",null,"Lav","Middels","Kvalitet, System",null,null,null,"Lav påvirkning"]
[null,16,"Bestillerne lokalt (LIBRA)",null,"Middels","Høy","Kvalitet, System","X","LIBRA rulles nå ut og det blit tilgang til miljø - og helseinformasjon ved kjøp av varer. Feil og mangler kan også meldes inn i samme system"]
[null,17,"Sykehusinnkjøp HF ",null,"Lav","Middels","Kvalitet, System, MSS","X","Innkjøpsplanen inkluderer prioriterte områder for samfunnsansvar (inkludert ytre miljø), og ytre miljø er fast punkt på takstisk innkjøpsforum.\nRammeverket. Underleverandører er ikke en del av internrevisjonene. "]
[null,18,"Private helsetjenester (utstyr, analyser, behandling)",null,"Lav","Middels","Forutsigbarhet, Omdømme",null,null,null,null,null,"Lav interesse",null,null,null,null,null,"Høy interesse"]
[null,null,"Underleverandører",null,"Middels","Middels","Kvalitete, MSS"]
[null,{"$f":"B28+1","v":19},"Drift/teknisk divisjon (støtte tjenster)",null,"Middels","Middels","Kvalitet, System","x","Internrevisjoner, energistrategi, nasjonale miljø- og klimamål, sentral i Helse Bergen sine miljømål og klimabudsjett"]
[null,20,"Teknisk avdeling, Prosjektkontoret, MTA",null,"Middels","Middels","Kvalitet, System","x","Internrevisjoner, energiledelse, energistrategi"]
[null,21,"Prosjektkontoret/byggherre",null,"Lav","Middels","Kvalitet, System, MSS",null,"Internrevisjoner, Energiledelse, Miljøoppfølgingsplan"]
[null,24,"Primærhelsetjenesten",null,"Middels","Høy","Kvalitet, MSS","x","En del av internrevisjonene, "]
[null,25,"Linjeledelsen",null,"Middels","Høy","Kvalitet, MSS","x","En del av internrevisjonene, Forbedringsundersøkelsen, Synergi og HMS-årsarpport, risikovurdering av budsjett på ytre miljø"]
[null,null,"Adm.dir/foretaksledelsen",null,"Middels","Middels ","Sertfisering, MSS","x","En del av internrevisjonene, Synergi, Forbedringsundersøkelsen, HMS-årsarpport, langtidsbudsjett, ledelsens gjennomgang og FAMU"]
[null,null,"Vernetjenesten",null,"Høy","Middels","MSS","x","En del av internrevisjonene, Forbedingsundersøkelsen, miljøseminar"]
[null,null,"Miljøkoordinatorer",null,"Lav","Middels","Kvalitet, MSS",null,"Lokal handlingsplan, og kontakt med nivå 2 -enhetene, miljøseminar"]
[null,null,"Controllere",null,"Lav","Middels","MSS",null,"Klimaregnskap, Klimabudsjett "]
[null,null,"Legemiddelkomiteen",null,"Høy","Middels","MSS","x","Ekstern miljørevisjon, arbeidstilsynet (Bedriftshelsetjenesten)"]
[null,null,"Arbeidsmiljø og personalrådgivning",null,"Middels","Høy","Sertifisering, MSS","x","Ekstern miljørevisjon, Arbeidstilsynet, Helse Vest,  nasjonale klima og miljømål"]
[null,null,"Seksjon for pasientsikkerhet",null,"Middels","Middels","Sertifisering",null,"Nasjonale klima- og miljømål, forbedringsarbeid"]
[null,null,"Styret i HBHF",null,"Høy","Middels","Omdømme, Kvalitet",null,"Årlig gjennomgang av miljøstyringssystemet"]
[null,null,"FAMU",null,"Middels","Middels","MSS",null,"Inkluderes i LGG arbeidet, og andre relevante miljøsaker"]
[null,null,"Tillitsvalgte",null,"Middels","Middels","MSS",null,"Inkluderes i LGG arbeidet, informasjons- og drøftingsmøte"]
[null,null,"Søknad om forskningsmidler",null,null,null,null,null,"Vudere muligheten for å inkludere ytre miljø"]
[null,null,"Klimapartnere Vestland",null,"Middels","Middels","Medlemskap, Klimaregnskap, Fossilfri virksomhet 2030","X","Klimarapport, klimaregnskap,seminarer, ledermøte "]
[null,null,"Bergen Næringsråd",null,"Middels","Middels","Medlemskap, Klimaregnskap, Fossilfri virksomhet 2030","X","PlastSmart"]

{"sheet":"Prioriterte 2019","index":5,"n_rows":31,"n_cols":8,"rows_kept":31,"cut":false,"hidden":true,"merged":[[2,1,2,3]]}
[]
[null,"Miljøstyringssystemet"]
[null,"Gjennomført 2019"]
[null,"#","Interessent","Tiltak","Beskrivelse","Prioritering\n(Høy/Middels/Lav)","Ansvarlig","Status per \nmai 2022"]
[]
[null,1,"Medarbeidere","Opplæring og tilrettelegging","Tilrettelegge for at hver enkelt medarbeider opptrer miljøvennlig\nUlike områder som bidrar til miljøgevinster, (eks. smittevern, kildesortering) fokus på aktiviteter i hverdagen.\nTilretttelegge for kildesortering på BUS 2/nybygg/SB/ombygging\nUtarbeidet nytt e-læringskurs i Avfallshåndtering, oppdatert avfallsprosedyrer\n\n","Høy","Prosjektkontoret/\nHospitaldrift/ SPAS"]
[null,null,null,"Opplæring og tilrettelegging","Rett informasjon om avfallshåndteringen, leder for miljøhallen deltar på miljøseminar i desember.\n","Høy","Hospitaldrift"]
[null,null,null,"Opplæring og tilrettelegging","I LIBRA vil man kunne melde feil og mangler på varer\n (Bruke synergi til å melde om mangler eller feil ved produkter)","høy","Seksjon for arbeidsmiljø- og personalrådgivning (ARPE)/linje"]
[null,null,null,"Opplæring og tilrettelegging","Medarbeidere må enkelt kunne gi tilbakemeldinger på miljøstyringssystemet. "]
[null,2,"Vernetjenesten","Informasjon og handlingsplan\nHar struktur for spre informasjon ut i sykehuset","I LIBRA vil man kunne melde feil og mangler på varer\nSynergi (kvalitet /miljø): melde fra om mangler eller feil ved produkter \n","Middels","ARPE/linje"]
[null,null,null,null,"Status for miljøarbeidet kan spres gjennom vernetjensten","Middels","ARPE/linje"]
[null,null,"Mijøkoordinator","Miljøseminar","Ingen samlinger i 2020 grunnet pandemien, nyhetsbrev"]
[null,3,"Arbeidsmiljø og personalrådgivning\nKommunikasjonsavdelingen","Utarbeide informasjon om miljøarbeidet i sykehuset og bedre brukervennligheten ","Utarbeide Kommunikasjonsplan \nFNs bærekraftsmål\n\n\n\n","Middels"]
[null,null,"Arbeidsmiljø og personalrådgivning","Utarbeide informasjon om miljøarbeidet i sykehuset og bedre brukervennligheten "," 2-3 kommunikasjonstiltak  for å nå ut til medarbeidere, vernetjensten, linjeledelsen, foretaksledelsen. \n1. Handlingsplan Forbedring, tema ytre miljø:\n-  Fokus på transport og video- /telefonkonsultasjon\n- Melde feil eller mangler ved et produkt\n- Reduksjon i antibiotikabruken har også et miljøperspektiv\n evt. klikke seg inn på forslagsliste til miljøtiltak\n2. Nivå 2-3 møtene Miljøstatus (virksomhetsrapporten)","Høy","ARPE/SPAS"]
[null,null,null,"Utarbeide informasjon om miljøarbeidet i sykehuset og bedre brukervennligheten ","Identifisere 2-3 tiltak som er felles for HMS og SPAS i kvalitetssystemet.\nVise at kvalitet  også har en miljøgevinst der det hensiktsmessig,\n1. Miljøpolitikken\n2. Melde feil eller mangler ved et produkt\n3. Reduksjon i antibiotikabruken har også et miljøperspektiv","Høy","ARPE/SPAS"]
[]
[null,null,null,null,"Tenke tema\nBedre miljødokumentasjonen slik at det blir enklere for lederene å styre. Lage en liste over miljøtiltak for de ulike miljømålene ref. smittefritt\nKan AMU-brukes mer"]
[null,4,"Seksjon for pasientsikkerhet","Bidra med struktur og inkluderer ytre miljø i nåværende system .\nBygge kvalitetssystem LG, (Synergi), EK","Synliggjøre miljøgevinster innenfor ulike tema som; sykehusinfeksjoner, smittevern, antibiotika "]
[null,null,null,"Bidra med struktur og inkluderer ytre miljø i nåværende system .\n","Identifisere 2-3 tiltak som er felles for HMS og SPAS i kvalitetssystemet.\nVise at kvalitet  også har en miljøgevinst der det hensiktsmessig,\n1. Miljøpolitikken\n2. Melde feil eller mangler ved et produkt\n3. Reduksjon i antibiotikabruken har også et miljøperspektiv","Høy","HMS/SPAS"]
[null,null,null,"Bidra med struktur og inkluderer ytre miljø i nåværende system .\n","Identifisere og gjennomgå pasientforløp, behandlingslinje, prosedyrer med fokus på kvalitet og ytre miljø"]
[null,5,"Linjeledelsen","Klare forventninger\n","Tydeligere på hvilke tiltak som bør gjennomføres.\nHandlingsplan Forbedring, tema ytre miljø :\n- Fokus på transport og video/telefonkonsultasjon\n- Melde feil eller mangler ved et produkt\n- Reduksjon i antibiotikabruken har også et miljøperspektiv\n evt. klikke seg inn på forslagsliste til miljøtiltak","Høy","ARPE/SPAS"]
[null,null,null,"Klare forventninger\n","Tydeliggjøre  rollen til miljøkoordinatorene  slik at de kan støtte leder. "]
[null,6,"Adm.dir/\nforetaksledelsen","Beslutte retning","LGG\nKlimapartnere Vestland"]
[null,null,null,null,"Adm.dir sine fokusområde","Høy","Adm.dir"]
[]
[]
[]
[null,7,"Anskaffelser/ Innkjøp (underleverandører, Sykehusinnkjøp HF, Brukergr.,Avtaleforvaltere, Sykehusapotekene, Helse Vest IKT)","Bedre dokumentasjonen av sykehusets behov og sikre informasjonsflyt samt kontroll av underlevenadørene\nPrioritere anskaffelser i forhold til samfunnsansvar i årlige innkjøpsplaner","Kontroll av underleverandører for å sikre samsvar. Underleverandører er ikke en del av internrevisjonene. Spilt inn til regional revisjonsplan og sykehuset sin revisjonsplan. Sykehusinnkjøp HF er inkludert i revisjonsprogrammet til sykehuset\n\nMelde feil eller mangler ved et produkt  mellom sykehus og underlevenadørersamt dokumentere og rapportere for å sikre læring. Manglende kvalitet per i dag\n\n","Høy","Økonomi- og finansavdelingen\nArbeidsmiljø og perosnalrådgivning"]
[null,8,"Bestillerne og sluttbrukerne av produkter",null,null,null,"Prosjekt: Helhetlig plan for anskaffelser, innkjøp og forsyning"]
[null,9,"Prosjektkontoret/Byggherre"]
[null,null,"Ansvarlige i miljøhandlingsplanen"]

{"sheet":"Risiko- og mulighetsanalyse","index":6,"n_rows":0,"n_cols":0,"rows_kept":0,"cut":false,"hidden":false,"merged":[]}

{"sheet":"Prioriterte Områder","index":7,"n_rows":26,"n_cols":8,"rows_kept":26,"cut":false,"hidden":false,"merged":[]}
[]
[null,"Miljøstyringssystemet"]
[null,"Gjennomført 2019, oppdadert vår 2022 med bakgrunn i SWOT, nasjonalt rammeverk og innspill fra miljøseminar"]
[null,"#","Interessent","Tiltak","Beskrivelse","Prioritering\n(Høy/Middels/Lav)","Ansvarlig","Status"]
[]
[null,1,"Medarbeidere","Opplæring og tilrettelegging","Tilrettelegge for at hver enkelt medarbeider opptrer miljøvennlig\nFokus på forbedringsarbeid og systematisk HMS-arbeid\n\n","Høy","ARPE/ SPAS"]
[null,null,null,"Opplæring og tilrettelegging","LIBRA: Utarbeide en plan for hvordan informasjon om tilgang til helse- og miljøinformasjon skal formidles og brukes, samarbeid med Seksjon forsynings- og innkjøpssenter samt melde feil og mangler på varer\n","høy","Seksjon for arbeidsmiljø- og personalrådgivning (ARPE)/linje"]
[null,null,null,"Opplæring og tilrettelegging","Medarbeidere må enkelt kunne gi tilbakemeldinger på miljøstyringssystemet. \n- Kampanjer\n- Idemottaket\n- Forbedringsarbeid"]
[null,2,"Vernetjenesten","Informasjon og handlingsplan\nHar struktur for spre informasjon ut i sykehuset","LIBRA: Utarbeide en plan for hvordan informasjon om tilgang til helse- og miljøinformasjon skal formidles og brukes, samarbeid med Seksjon forsynings- og innkjøpssenter samt melde feil og mangler på varer","Middels","ARPE/linje"]
[null,null,null,null,"Status for miljøarbeidet kan spres gjennom vernetjensten","Middels","ARPE/linje"]
[null,null,"Mijøkoordinator","Miljøseminar","To årlige seminar"]
[null,3,"Arbeidsmiljø og personalrådgivning\nKommunikasjonsavdelingen","Utarbeide informasjon om miljøarbeidet i sykehuset og bedre brukervennligheten ","Utarbeide Kommunikasjonsplan \nFNs bærekraftsmål\n\n\n\n","Middels"]
[null,null,"Arbeidsmiljø og personalrådgivning","Utarbeide informasjon om miljøarbeidet i sykehuset og bedre brukervennligheten "," 2-3 kommunikasjonstiltak  for å nå ut til medarbeidere, vernetjensten, linjeledelsen, foretaksledelsen. \n1. Handlingsplan Forbedring, tema klima og miljø:\n-  Fokus på økt bruk av video- /telefonkonsultasjon\n-  Fokus på Helsetjenesteassosierte infeksjoner (HAI)\n2. Nivå 2-3 møtene - status og tiltak klima og miljø ","Høy","ARPE/SPAS"]
[]
[null,null,null,null,"Tenke tema\nBedre miljødokumentasjonen slik at det blir enklere for lederene å styre. Lage en liste over miljøtiltak for de ulike miljømålene ref. smittefritt\nKan AMU-brukes mer"]
[null,4,"Seksjon for pasientsikkerhet","Bidra med struktur og inkluderer klima og miljø i nåværende system .\nBygge kvalitetssystem LG, (Synergi), EK, Forbedringsarbeid","Synliggjøre miljøgevinster innenfor ulike tema som; forbedringsarbeid/metodikk, sykehusinfeksjoner, smittevern, antibiotika ","Høy","HMS/SPAS"]
[null,null,null,"Bidra med struktur og inkluderer ytre miljø i nåværende system .\n","Identifisere og gjennomgå pasientforløp, behandlingslinje, prosedyrer med fokus på kvalitet og ytre miljø"]
[null,5,"Linjeledelsen","Klare forventninger - klimabudsjett\n","1. Handlingsplan Forbedring, tema klima og miljø:\n-  Fokus på økt bruk av video- /telefonkonsultasjon\n-  Fokus på Helsetjenesteassosierte infeksjoner (HAI)\n- Forbedringsarbeid\n2. Arbeid med klimabudsjett","Høy","ARPE/SPAS"]
[null,null,null,"Klare forventninger\n","Tydeliggjøre  rollen til miljøkoordinatorene  slik at de kan støtte leder. "]
[null,6,"Adm.dir/\nforetaksledelsen","Beslutte retning","Ledelsens gjennomgang ytre miljø , Klimapartnere Vestland"]
[]
[]
[null,7,"Anskaffelser/ Innkjøp (underleverandører, Sykehusinnkjøp HF, Brukergr.,Avtaleforvaltere, Sykehusapotekene, Helse Vest IKT)","Bedre dokumentasjonen av sykehusets behov og sikre informasjonsflyt samt kontroll av underlevenadørene\n\nPrioritere anskaffelser i forhold til samfunnsansvar i årlige innkjøpsplaner","Kontroll av underleverandører for å sikre samsvar. Underleverandører er ikke en del av internrevisjonene. Spilt inn til regional revisjonsplan og sykehuset sin revisjonsplan. \nMelde feil eller mangler ved et produkt  mellom sykehus og underlevenadørersamt dokumentere og rapportere for å sikre læring. \n\n","Høy","Drift/teknisk divisjon\nArbeidsmiljø og perosnalrådgivning"]
[null,8,"Bestillerne og sluttbrukerne av produkter"]
[null,9,"Prosjektkontoret/Byggherre",null,"Ombruk av byggmatriell"]
[null,null,"Ansvarlige i miljøhandlingsplanen"]

{"sheet":"Veileder interessentanalyse","index":8,"n_rows":12,"n_cols":1,"rows_kept":12,"cut":false,"hidden":false,"merged":[]}
[]
[]
["Om interessentanalyse"]
["En interessent kan defineres som en gruppe, rolle eller enkeltperson som kan påvirke, er interessert i /blir berørt av måloppnåelse i et prosjekt. \n\nVi anbefaler å vurdere interessentens interesse og påvirkning i forhold til prosjektets nytteeffekter og leveranser, dvs. nytteverdien vi ønsker at prosjektet skal gi oss og det prosjektet skal utvikle og utføre i løpet av sin levetid.     \n\nProsjektet må forankres blant interessentene og dette gjøres gjennom:\na) Deltakelse i prosjektgruppen, i styringsgruppen eller i referansegruppen og/eller gjennom\nb) Kommunikasjons – og/eller opplæringsaktiviteter\n'Interessentanalysen hjelper oss å avgjøre hvem som skal omfattes av hvilke forankringstiltak."]
[]
["Veiledning til bruk av malen"]
["1) Identifiser prosjektets interessenter, sett dette inn i kolonnen \"Interessent\""]
["2) Beskriv interessentens interesse i prosjektets, dvs. hva er interessentens behov og/eller krav til prosjektets leveranser. "]
["3) Vurder og angi interessentens interesse på skalaen høy (H), middels (M) og lav (L) i kolonnen \"Interesse (H, M, L)\" "]
["4) Vurder og angi interessentens mulighet for påvirkning på skalaen høy (H), middels (M) \nog Lav (L) i kolonnen \"Påvirkning (H, M, L)\""]
["5) Sorter interessentene ved hjelp av resultatene i kolonnene \"Interesse\" og \"Påvirkning\". \nDette gir oversikt over de viktigste interessentene i prosjektet, og grunnlag for å velge forankringstiltak"]
["6) Velg forankringstiltak for hver interessent: Deltakelse i prosjektgruppen, deltakelse i styringsgruppen, deltakelse i referansegruppe, kommunikasjons og/eller opplæringsaktiviteter. "]

{"sheet":"Samsvarsvurdering","index":9,"n_rows":125,"n_cols":5,"rows_kept":125,"cut":false,"hidden":false,"merged":[[121,0,125,0],[120,3,124,3],[99,1,105,1],[99,2,105,2],[99,3,105,3],[106,3,107,3],[109,2,110,2],[109,3,110,3],[112,0,116,0],[112,3,116,3],[117,0,119,0],[94,0,94,3],[95,0,95,3],[96,0,96,3],[97,0,98,0],[97,1,98,1],[97,2,98,2],[97,3,98,3],[93,0,93,3],[83,1,85,1],[83,2,85,2],[83,3,85,3],[86,0,87,0],[86,2,87,2],[86,3,87,3],[88,0,88,3],[89,0,89,3],[90,0,90,3],[91,0,91,3],[92,0,92,3],[80,3,82,3],[68,0,68,3],[70,0,70,3],[71,0,71,3],[72,0,72,3],[73,0,73,3],[75,1,79,1],[75,2,79,2],[75,3,79,3],[67,0,67,3],[55,0,55,3],[56,0,56,3],[58,0,60,0],[58,2,60,2],[58,3,60,3],[61,0,61,3],[62,0,62,3],[63,0,63,3],[64,0,64,3],[65,0,65,3],[66,0,66,3],[51,0,53,0],[51,2,53,2],[51,3,53,3],[34,3,36,3],[40,0,41,0],[40,2,41,2],[40,3,41,3],[42,0,43,0],[42,2,43,2],[42,3,43,3],[45,0,47,0],[45,3,47,3],[48,0,50,0],[48,2,50,2],[48,3,50,3],[19,3,24,3],[26,0,28,0],[26,1,28,1],[26,3,28,3],[30,2,32,2],[30,3,32,3],[16,0,17,0],[16,3,17,3],[1,0,1,3],[2,0,2,3],[3,0,3,3],[7,3,9,3],[11,3,13,3]]}
["Myndighetskrav/Egne krav","Kommentarer","Dokumentasjon","Status","Lenker"]
["Forskrift om systematisk helse-, miljø- og sikkerhetsarbeid i virksomheten (internkontrollforskriften)"]
["HMS-håndbok Miljøstyringssystemet"]
[]
["4. Organisasjonens kontekst"]
["4.1 Forstå organisasjonen og organisasjonens kontekst\n4.2 Forstå behovene og forventningene til interessepartene\n4.3 Bestemme omfanget a ledelsessystemet for miljø\n4.4 Ledelsessystem for miljø","Det er gjennomført interessentanalyse 2019, og oppdatert våren 2022\nKlimarisikovurdering \nBruker modellen fra utviklingsplanen 2035 for å definere omfang og kontekt","Miljøstyringssystemet i EK, Intranett, interessentanalyse, viser til modellen i UP 2035",null,"Utviklingsplan 2022-2035 - Helse Bergen (helse-bergen.no)"]
["5. Lederskap"]
["5.1 Lederskap og forpliktelse","Miljøstyringssystemet følger linjen."]
["C) sikre at kravene i ledelsessystemet for miljø integreres i organisasjonens forretningsprosesser","De nasjonale miljø- og klimamålene er inkludert i UP 2035, noen delplaner, og skal også følges opp gjennom porteføljestyringen. \nMiljø- og klima er ikke fullt ut integrert i driften. ","Intranettet "]
["h) fremme kontinuerlig forbedring","Årlig ledelsens gjennomgang i foretaksledelsen\nVedtatt klimabudsjett for 2024-2030","Referat foretaksledelsen "]
["6. Planlegging"]
["6.1 Tiltak for å ta hensyn til risiko og muligheter \n6.1.1 Generelt\n","Risikovurdering- og mulighetsvurdering er gjennomført på overordnet nivå, og risiko er vurdert i redegjørelse av samfunnsansvar","Lagret i miljøstyringssystemet EK, internettsiden til Helse Bergen under bærekraft og samfunnsansvar"]
[null,"Enhetene gjennomfører årlig forbedringsundersøkelse (HMS og pasientsikkerhet), vernerunder (inkluderer klima og miljø tema) og risikovurdering av budsjett.","Intranett, Vernerunder settes i perm, risikovurdering av budsjett  ligger på intranettsiden til Økonomi- og finansavdelingen"]
[null,"Mangler miljørisikovurderinger på identifiserte miljørisikoer/vesentlige miljøaspekter. Det er ikke identifisert hvor langt ned i organisasjonen risikovurderinger skal gjennomføres.","HMS-risikovurderinger skal lagres i EK"]
["6.1.2 Miljøaspekter","Årlig oppdatering av miljøkartleggingen/ miljøaspektene og klimaregnskap"]
["6.1.3 Samsvarsforpliktelser","Gjennomgang av krav i standard","Samsvarsvurderingen lagres i EK/intranett"]
["6.1.4 Planlegge tiltak","Det utarbeides en miljøhandlingsplan for hele sykehuset med bakgrunn i vesentlige miljøaspekter, samsvarsvurdering og risiko og muligheter som er identifisert.","Vedtatt miljøhandlingsplanen synliggjøres på intranettet under temaet miljø- og klimaarbeid"]
[null,"Enhetene har egne lokale planer som skal inneholde klima og miljø mål","Lagres i Synergi"]
["5. Lederskap"]
["5.2 Miljøpolitikk","Miljøpolitikk og mål er vedtatt i foretaksledelsen.","Referat foretaksledelsen",null,"Microsoft Power BI"]
["6. Planlegging"]
["6.2 Mål, delmål og programmer","Miljøhandlingsplan for sykehuset vedtatt i FTL. De overorda miljømålene føles opp i Styring av portefølje, program og prosjekt. \n\nSpesialisthelsetjenesten har vedtatt felles mål for å redusere klimagassutslippene fra driften, men målene kan bli vanskelig å oppfylle om de ikke henger sammen med de andre forventingene til spesialisthelsetjenesten.",null,null,"Styring av portefølje, program og prosjekt (sharepoint.com)"]
[null,"Ekstern miljørevisjon viser til forbedringer knyttet til struktur og nivå på miljømål og tiltak.","HMS-årsrapport viser antall planer med miljømål og tiltak, internrevisjoner"]
[null,"Rundt 71% av enhetene rapporterer at de har lagt inn miljømål og tiltak i handlingsplanene (HMS-årsrapport)"]
[null,"Rundt ¼ av enhetene har risikovurdert ytre miljø ved endring av budsjett"]
["7. Støtte "]
["7.2, 7.3 og 7.4 Kompetanse, bevisstgjøring og kommunikasjon","Spørsmål ved internrevisjoner, og vedtatt i ledelsens gjennomgang\nFaste nyhetssaker på intranettet\nArbeidet med samfunnsansvar, og miljø og - og klimaarbeidet er tilgjengelig på internettet\nOpplæringsbehovet forbundet med organisasjonens miljøaspekter og ledelsessystem for miljø kan forbedres\n\n","Internrevisjoner, læringsportalen (ytre miljø e-læringskurs, e-læringskurs avfallshåndtering), Klasseromskurs: HMS-grunnkurs, Lederrollen, HMS og forbedring."]
[null,null,"Kompetanseportalen."]
[null,null,"Forbedringer knyttet til eksterne aktører/innleie"]
["7.5 Dokumentert informasjon"]
["7.5.2 Oppretting og oppdatering","Miljøstyringen er lagret på overordnet nivå.","Miljøstyringsdokumenter er lagt inn i Elektronisk kvalitetshåndbok (EK)"]
["7.5.3 Styring av dokumentert informasjon","Det er imidlertid ingen struktur for hver enkelt nivå 2-3 enhet."]
[null,"Det er uklart hvor ulike dokumenter skal lagres, og da spesielt i forhold til EK eller intranett"]
["8. Drift"]
["8.1 Planlegging og styring av drift","Status og dialog med FAMU, i Informasjons- og drøftingsmøte i forkant av ledelsens gjennomgang i foretaksledelsen\nDe overorda miljømålene føles opp i Styring av portefølje, program og prosjekt, bidrar til at planlagte endringer kan styres og ugunstige miljøvirkninger kan begrenses.\nLegemiddelhåndtering er en del av internrevisjonene samt at farmasøytene gjennomfører legemiddelrevisjoner. "]
[]
["Styre og kontrollere underleverandører: Sykehusinnkjøp HF, Sykehusapotekene, Helse Vest IKT","LIBRA vil kunne bidra til bedre oppfølging av leverandører og avvikssystemet. ","Identifisert i redegjørelse for samfunnsansvar"]
["8.2 Beredskap og innsats","Overordnet beredskapsplan for Helse Bergen inkluderer klimaendringer","Elektronisk kvalitetshåndbok og intranett"]
["9. Prestasjonsevaluering"]
["9.1 Overvåking, måling, analyse og evaluering","Klimaregnskap, miljøindikatorer, HMS-årsrapport, Forbedringsundersøkelsen, risikovurdering ved endring av budsjett, redegjørelse av samfunnsansvar","Elektronisk kvalitetshåndbok, intranett og internett"]
["9.2 Internt revisjonsprogram","Internrevisjonsplanen og gjennomføringen av internrevisjoner er under revidering.","Revisjonsplan vedtatt i foretaksledelsen og styre"]
[null,"Per nå er det egne ytre miljø revisjoner på vesentlige miljøaspekt. HMS-årsrapport er en egenrapportering for enhetene som gir et bilde av det systematiske HMS/ytre miljø arbeidet i enheten. Forbedringsundersøkelsen"]
["9.3 Ledelsens gjennomgang","Gjennomføres årlig i foretaksledelsen","Referat fra ledelsens gjennomgang, og referat fra styre"]
[null,"Miljø- og klima er tema på dialogmøte mellom RHFet og HB en gang i året"]
["10. Forbedring"]
["10.2 Avvik og korrigerende tiltak","Det meldes få miljøavvik. Generell saksbehandling og meldekultur er en del av spørsmålene knyttet til internrevisjoner.","Synergi"]
[null,"Det må i større grad tilrettelegges for melding, saksbehandling og rapportering av feil/mangler ved produkter og tjenester.","Internrevisjoner"]
[null,null,"HMS-årsrapport"]
["Uønskede hendelser (miljøavvik) på hendelsestype; Ytre miljø","Det er få meldte miljøavvik av vesentlig betydning, Dashboard","Synergi"]
[null,"Det er en overvekt av saker knyttet til avfallshåndtering, uteområder og sikkerhet."]
[null,"HMS-årsrapport er en egenrapportering for enhetene som gir et bilde av det systematiske HMS/ytre miljø arbeidet i enheten"]
["Eksterne henvendelser","Expand: 18-028549 omhandler klage på støy fra Vaskeriet. (Avkastet til tørketrommelen til Vaskeriet. Vurdert til ikke å være feil)","Registreres og saksbehandles i Xpand og Elements (Ephorte)"]
[null,"18-016718 omhandler klage på støy fra ventilasjon Marie Joys Hus. (Avtrekksvifte. Motor er skiftet)."]
[null,"Elements støy fra Helikopterlandingsplass på Grønneviksøren – Sak nr. 2021/31."]
["Pasienter/Pårørende/Brukerutvalg"]
["Myndighetskrav og egne krav"]
["Energi og bygg"]
["Forskrift om energimerking av bygninger og energivurdering av tekniske anlegg (energimerkeforskriften for bygninger)"]
["Bygg","Mangler Energimerking i bygg på ytre områder og leide i bygg","Internrevisjon Energiledelse, ekstern miljørevisjon, Altinn/Expand","?"]
[null,"Status 16.11.21: 10 bygg skal energimerkes på Haukeland i 2021. Deretter skal ytterligere 20 bygg (blant annet på Sandviken sykehus, Tertnes DPS, Kysthospitalet på Hagevik og Voss sykehus merkes i løpet av januar- februar 2022."]
[null,"De resterende byggene vil bli merket i løpet av mars- april 2022"]
["Kjemikaliehåndtering "]
["REACH - forskrifen"]
["Forskrift om klassifisering mv. av stoff (CLP)"]
["Forskrift om utførelse av arbeid, bruk av arbeidsutstyr og tilhørende tekniske krav (forskrift om utførelse av arbeid)"]
["Forskrift om org., ledelse og medvirkning"]
["Prosedyre for bruk av sikkerhetsdatablad og stoffkartotek"]
["Prosedyre for håndtering av kjemikalier"]
["Risikovurdering av kjemikalier i sentralt register Eco Archive"]
["Kjemikaliehåndtering","Spørsmål ved internrevisjon, etterspørres i HMS-årsrapport, inkludert i vernerunder, Forbedringsundersøkelsen","Internrevisjoner, Ecoonline, HMS-årsrapport"]
["Transport"]
["Soneinnkalling/pasientkalender"]
["Forurensningsforskriften kap.5 Støy"]
["Landtransport av farlig gods § 10 (sikkerhetsrådgiver)"]
["Transport","Kjøper tjenesten sikkerhetsrådgiver (DGM)","Referat foretaksledelsen"]
["Utslippstillatelser/ påslippstillatelse"]
["Forurensingsforskriften kap.8"]
["Forurensingsforskriften kap.15"]
["Forskrift om strålevern og bruk av stråling (strålevernforskriften)"]
["E.K. 02.1.4.2 Strålevern Utslippstillatelse"]
["Utslippstillatelser ","Fylkesmannen i Vestland","Teknisk avdeling"]
["Påslippstillatelser","Statensstrålevern","Strålevernansvarlig"]
[null,"Bergen kommune","Hospitaldrift ved Vaskeriet"]
["Anskaffelser"]
["Produktkontrolloven § 3 og § 3a "]
["Forskrift om offentlige anskaffelser"]
["Anskaffelser ","Økning i anbud med miljøkrav.","Intranett: klimagassregnskap"]
[null,"Det er startet et nasjonalt arbeid for å få bedre oversikt over miljø- og klimabelastningen fra anskaffelser."]
["Nybygg og ombygg"]
["Plan og bygningsloven § 1-1"]
["Forskrift om tekniske krav til byggverk (byggteknisk forskrift) §9-1,§9-2, §13-1"]
["Forskrift om begrensning i bruk av helse- og miljøfarlige kjemikalier og andre produkter (produktkontrollforskriften)"]
["Lov om offentlige anskaffelser § 6"]
["Produktkontrolloven §3a substitusjonsplikten"]
["Energimerkeforskriften"]
["E.K. 02.6.5 Prosjektkontoret"]
["Standard for klima i miljø i sykehusprosjekter med vedlegg.pdf (sykehusbygg.no)"]
["Nybygg og ombygging","Egen miljøoppfølgingsplan","Webhotellet"]
[]
["Avfallshåndtering "]
["Forskrift om gjenvinning og behandling av avfall (avfallsforskriften)"]
["Avfallshåndtering "]
["02.1.5.6-14 Håndtering av farlig avfall "]
["02.1.5.6-13 Håndtering av avfall "]
["02.1.5.4.2 Vareflyt "]
["02.1.5.4.2-10 Retur av legemidler"]
["Avfallshåndtering","Avfallsstatistikk, Internrevisjoner, vernerunder, rapportering i synergi. Noe feilsortering og manglende standard oppsett på stativ","Synergi"]
["Endringer fra 1. januar 2023, nye utsorteringskrav i kraft, plast og matavfall","Hospitaldrift har et eget prosjekt for å imøtekomme endringene i avfallsforskriften"]
["Klimagassutslipp"]
["Klimagassutslipp","Gjennomfører utvidet klimaregnskap annet hvert år (scope 1,2,3), og har vurdert sykehusdriften opp mot togradersmålet.","Klimaregnskap og klimabudsjett er tilgjengelig på internett og intranett"]
["Lov om klimamål (Klimaloven)","Vedtatt klimabudsjett 2024-2030"]
["Egnekrav"]
["Styringsdokumentet 2023","7. Andre oppdrag 7.1 Samfunnsansvar og staten sine forventningar i eierskapsmeldingen ","Samfunnsansvarsrapport for spesialisthelsetjenesten"]
[null,"Regjeringa sine forventningar til statlege selskap går fram av Meld. St. 6 Et grønnere og mer aktivt statlig eierskap — Statens direkte eierskap i selskaper (eierskapsmeldingen). Omsynet til berekraft i staten sine mål som eigar er tydeleggjort og forsterka. Staten er opptatt av at selskapa identifiserer risiko, moglegheiter og behov for omstilling av verksemda si som følgje av Parisavtalen sine mål og integrerer dette i strategiane sine. Staten forventar at selskapa rapporterer på direkte og indirekte klimagassutslepp og klimarisiko, samt nytter anerkjente standardar for rapportering.","Gjennomført redegjørelse for samfunnsansvar\nManglende klimarisiko for driften"]
[null,"Spesialisthelsetenesta vil i 2023 sluttføre arbeid med eit rammeverk for samfunnsansvar for å klargjere kva for nokre forpliktingar som gjeld for området og korleis spesialisthelsetenesta arbeider med samfunnsansvaret. I denne samanheng omfattar samfunnsansvar oppfølging av staten sine forventningar til ansvarleg verksemd. Rammeverket for samfunnsansvar erstattar rammeverk for klima- og miljø. Rammeverket inneheld ein mal for utgreiingar på alle relevante samfunnsansvarsområde. Helse Vest RHF ber helseføretaka om å: ","Inkludert nasjonale miljø- og klimamål i UP 2035, noen delplaner, og er en del av porteføljeoppfølgingen"]
[null,"• følgje staten sine forventningar som kjem fram i eigarskapsmeldinga. ","Vedtatt klimabudsjett 2024-2030, referat foretaksledelsen"]
[null,"• følgje opp aktivitetar/krav på område samfunnsansvar i tråd med nytt rammeverk for samfunnsansvar med vedlegg når dette ligg føre."]
["Styringsdokumentet 2024","8.1 Samfunnsansvar 8.1.1 Oversikt over utslippsbaner\nDet blir vist til kapittel 7.1 i styringsdokument 2023 om Samfunnsansvar og staten sine \nforventningar i eierskapsmeldingen.\nI styringsdokument 2023 blei helseføretaka bedne om å følgje opp staten sine forventningar i \nMeld. St. 6 Et grønnere og mer aktivt statlig eierskap — Statens direkte eierskap i selskaper\n(eierskapsmeldingen). I meldinga er omsynet til berekraft i staten sine mål som eigar \ntydeleggjort og forsterka. Det er mellom anna forventa at selskapa rapporterer på \nklimagassutslepp og klimarisiko.\n\nEin viser vidare til at dei regionale helseføretaka har vedtatt felles klima- og miljømål med \nindikatorar i spesialisthelsetenesta. Som hovudmål skal spesialisthelsetenesta innan 2030\nredusere (direkte) utslepp av CO2-ekvivalenter (CO2e) med 40 pst. Det langsiktige målet er \nklimanøytral drift av spesialisthelsetenesta innan 2045. I arbeidet med å nå desse måla vil det\nvere hensiktsmessig å utarbeide ei oversikt over utsleppsbaner for korleis ulike tiltak vil \npåverke framtidig samla CO2-utslipp for spesialisthelsetenesta.","Gjennomført redegjørelse for samfunnsansvar\nGjennomført klimarisikovurdering"]
[null,"Helse Vest RHF ber helseføretaka om å:\n• fortsette arbeidet med å følgje staten sine forventningar som kommer fram i \neierskapsmeldingen.\n• bidra inn i arbeidet med å utarbeide ei oversikt over utsleppsbaner for korleis ulike \ntiltak vil påverke framtidig samla CO2-utslipp for spesialisthelsetenesta."]
[null,"8.1.2 Eigedom\nKlima- og miljøperspektivet skal ha høgt fokus. Eit tiltak for å redusere klimautsleppa er å \ngjenbruke meir av det som allereie er produsert. Innanfor byggjeprosjekt og \neigedomsforvaltning vil det gjelde både byggjemateriale og laust utstyr som til dømes møblar. \nFor å lukkast med å auke gjenbruken, er det viktig å etablere gode system når det gjeld alt frå \nkunnskap om innhald i materiala i det som skal gjenbrukast og system for oppbevaring fram til \ndet kan gjenbrukast.","Miljøhandlingsplan for sykehuset inkluderer mål på ombruk av møbler og byggematriell"]
["Rammeverket for samfunnsansvar","·       Forankre klimaarbeidet i toppledelsen","Vedtatt overordna miljømål og miljøpolitikk i foretaksledelsen"]
["Medlemskap Klimapartnere Vestland","·       Miljøsertifiseres som Miljøfyrtårn, ISO eller lignende. ","Miljø og klima er lagt inn i «plakaten»"]
[null,"·       Diverse utvikle produkter eller tjenester med fokus på å redusere utslipp","Sykehuset er miljøsertifisert etter ISO 14001:2015"]
[null,"·       Utarbeide årlig klimaregnskap","Utarbeider klimaregnskap og vedtatt klimabudsjett for 2024-2030."]
[null,"    Utfordrer medlemmene til å - Bli fossilfri innen 2030 (direkte klimautslipp)","Sykehuset har mål om å være fossilfri virksomhet innen 2030 (direkte utslipp)"]

{"sheet":"Referanser","index":10,"n_rows":71,"n_cols":2,"rows_kept":71,"cut":false,"hidden":false,"merged":[]}
["Kryssreferanser-tabell"]
[]
[]
[]
[]
[]
[]
[]
[]
[]
[]
[]
["Vedleggs-tabell"]
[]
[]
[]
[]
[]
[]
["Siste endringer i dokumentet:"]
["03.01.17:\nLagt til Landtransport av farlig godt §10\nGenerell oppdatering\n28.01.16:\nImplementert prosedyre E.K. 02.1.1.5-2-3-03 Lover, forskrifter, prinsipper og ansvar\n15.01.16:\nLagt tilMiljøinformasjonsloven\n11.11.2015: \nEndret på miljøindikatorene i henhold til vedtak i foretaksledelsen\nLagt inn resultat for klimagassregnskapet 2014\n\n\nOppdatert delmål og lagt til miljøindikatorer for CO2-utslipp og samkjørte pasientreiser"]
[]
[]
[]
["Eksterne referanser tabell"]
["1.19.7","Strålevernloven - Lov om strålevern og bruk av stråling"]
["1.2.6","Anskaffelsesloven - Lov om offentlige anskaffelser"]
["1.2.7.1","Anskaffelsesforskriften - Forskrift om offentlig anskaffelse"]
["4.4.1.2.4","Miljøaspekt"]
["1.2.1.3","AML Kap 3 Virkemidler i arbeidsmiljøet"]
["1.14.7","Merkeforskriften (Klassifisering og merking av farlige kjemikalier)"]
["1.19.8.1.1","Forskrift om strålevern og bruk av stråling (strålevernforskriften)"]
["4.4.1.2.6","Mål, delmål og program(mer)"]
["1.18.3","REACH - forskriften - Forskrift om registrering, vurdering, godkjenning og begrensning av kjemikalier"]
["1.10.1","Internkontrollforskriften - Forskrift om systematisk helse-, miljø- og sikkerhetsarbeid i virksomheter"]
["4.4.1.2","NS-EN ISO 14001:2004"]
["1.16.4","Forskrift om organisering, ledelse og medvirkning"]
["1.7.14.1","Forskrift om begrensning av forurensning (forurensningsforskriften)"]
["1.7.14.1.3","Kapittel 5. Støy - kartlegging, handlingsplaner og tiltaksgrenser for eksisterende virksomhet"]
["1.7.14.1.1","Kapittel 1. Tiltak for å motvirke fare for forurensning fra nedgravde oljetanker"]
["1.7.14.1.2","Kapittel 2. Opprydding i forurenset grunn ved bygge- og gravearbeider"]
["1.7.14.1.4","Kapittel 8. Svovelinnhold i fyringsolje"]
["1.7.14.1.5","Kapittel 15A. Påslipp"]
["1.17.15.1","Forskrift om tekniske krav til byggverk (Byggteknisk forskrift)"]
["1.17.15.1.1","Kapittel 9. Ytre miljø"]
["1.6.7.1","Forskrift om energimerking av bygninger og energivurdering av tekniske anlegg (energimerkeforskriften)"]
["1.7.14.2","Forskrift om gjenvinning og behandling av avfall (avfallsforskriften)"]
["1.7.14.2.1","Kapittel 1. Kasserte elektriske og elektroniske produkter"]
["1.7.14.2.2","Kapittel 3. Miljøskadelige batterier"]
["1.7.14.2.3","Kapittel 11. Farlig avfall"]
["1.7.14.2.4","Kapittel 14. Kasserte PCB-holdige isolerglassruter"]
["1.7.14.2.5","Kapittel 16. Radioaktivt avfall"]
["1.17.10","Lov om kontroll med produkter og forbrukertjenester (Produktkontrolloven)"]
["1.17.10.1","Produktkontrolloven §3 Aktsomhetsplikt m.v."]
["1.17.10.2","Produktkontrolloven § 3a Substitusjonsplikt"]
["1.14.6","Miljøinformasjonsloven - Lov om rett til miljøinformasjon og deltakelse i offentlige beslutningsprosesser av betydning for miljøet."]
["1.12.1","Kulturminneloven - Lov om kulturminner."]
["1.17.14","Plan- og bygningsloven - Lov om planlegging og byggesaksbehandling"]
["1.6.6","Energiloven - Lov om produksjon, omforming, overføring, omsetning, fordeling og bruk av energi m.m."]
["1.7.13","Lov om vern mot forurensninger og om avfall (Forurensningsloven)"]
["1.2.1","Lov om arbeidsmiljø, arbeidstid og stillingsvern mv. (arbeidsmiljøloven - AML)"]
[]
["ISO140014.3.3","Mål, delmål og program(mer)"]
[null,"Kapittel 9. Ytre miljø"]
[null,"Forskrift om energimerking av bygninger og energivurdering av tekniske anlegg (energimerkeforskriften)"]
[null,"Lov om strålevern og bruk av stråling (Strålevernloven - stvl.)"]
[]
["4.4.1.2","NS-EN ISO 14001:2004"]
["ISO140014.3.1","Miljøaspekt"]
[null,"Mål, delmål og program(mer)"]
["ISO 14001 4.3.2","Lovbestemte krav og andre krav"]